fUSD/lending_fUSD_20240524
["ID","MTS","AMOUNT","RATE_DAILY","PERIOD"]
[327898815,1716589838928,-250.0,0.00021918,2]
[327898817,1716589838937,-185.57,0.00021918,2]
[327898819,1716589838947,-151.73,0.00022174,2]
[327898821,1716589838956,-235.4,0.00022659,2]
[327898823,1716589838965,-4618.40103546,0.00024,3]
[327898825,1716589838974,-180.0,0.0002423,2]
[327898827,1716589838983,-235.4,0.00024923,2]
[327898828,1716589838994,-155.0,0.00025,2]
[327898831,1716589839006,-926.99561138,0.00025,2]
[327898833,1716589839015,-155.0,0.00025,2]
[327898834,1716589839025,-155.0,0.00025,2]
[327898836,1716589839036,-224.37055639,0.00025,2]
[327898838,1716589839045,-5000.0,0.00025,7]
[327898840,1716589839054,-23447.18956077,0.00026,5]
[327898842,1716589839063,-235.4,0.00027187,2]
[327898843,1716589839075,-805.2552867,0.0002739,2]
[327898845,1716589839085,-252.139,0.00027708,2]
[327898847,1716589839094,-7855.75931981,0.00028,2]
[327898849,1716589839103,-33294.82706426,0.00028314,4]
[327898851,1716589839112,-1482.92130608,0.00029,2]
[327898853,1716589839121,-155.16,0.00029349,2]
[327898855,1716589839131,-235.4,0.00029451,2]
[327898856,1716589839140,-225.90663782,0.000295,3]
[327898858,1716589839151,-2043.72,0.00029964,10]
[327898860,1716589839160,-2452.46,0.00029974,10]
[327898862,1716589839169,-2942.96,0.00029984,10]
[327898864,1716589839178,-1884.9,0.00029985,10]
[327898865,1716589839187,-302.0,0.00029994,5]
[327898867,1716589839196,-151.0,0.00029994,2]
[327898869,1716589839205,-3954.07765249,0.0003,10]
[327898871,1716589839214,-1452.20867806,0.0003,15]
[327898881,1716589839324,-7318.71557829,0.0003,15]
[327899048,1716589841279,-207.58824107,0.00011141,2]
[327899050,1716589841289,-1229.07574365,0.0003,15]
[327899052,1716589841298,-151.73,0.00030374,2]
[327899055,1716589841308,-1140.26247644,0.0003038,2]
[327899056,1716589841317,-503.22286571,0.00031504,4]
[327899058,1716589841326,-411.97182882,0.00031506,5]
[327899060,1716589841335,-500.0,0.00031506,5]
[327899063,1716589841345,-500.0,0.00031506,5]
[327899065,1716589841354,-500.0,0.00031506,5]
[327899066,1716589841364,-525.6,0.00031506,5]
[327899069,1716589841373,-500.0,0.00031506,5]
[327899071,1716589841382,-500.0,0.00031506,5]
[327899073,1716589841392,-617.75,0.00031506,5]
[327899074,1716589841402,-500.0,0.00031506,5]
[327899077,1716589841412,-500.0,0.00031506,5]
[327899079,1716589841422,-500.0,0.00031506,5]
[327899081,1716589841432,-875.35,0.00031506,5]
[327899083,1716589841440,-500.0,0.00031506,5]
[327899084,1716589841449,-500.0,0.00031506,5]
[327899086,1716589841458,-500.0,0.00031506,5]
[327899089,1716589841468,-500.0,0.00031506,5]
[327899090,1716589841477,-500.0,0.00031506,5]
[327899093,1716589841487,-500.0,0.00031506,5]
[327899095,1716589841497,-500.0,0.00031506,5]
[327899097,1716589841506,-500.0,0.00031506,5]
[327899099,1716589841516,-631.06,0.00031506,5]
[327899101,1716589841524,-500.0,0.00031506,5]
[327899102,1716589841534,-500.0,0.00031506,5]
[327899105,1716589841543,-500.0,0.00031506,5]
[327899107,1716589841552,-500.0,0.00031506,5]
[327899109,1716589841562,-576.74,0.00031506,5]
[327899111,1716589841572,-362.3179565,0.00031506,5]
[327899113,1716589841581,-500.0,0.00031506,5]
[327899115,1716589841591,-1000.0,0.00031506,5]
[327899117,1716589841600,-500.0,0.00031506,5]
[327899119,1716589841609,-500.0,0.00031506,5]
[327899121,1716589841618,-500.0,0.00031506,5]
[327899122,1716589841628,-500.0,0.00031506,5]
[327899125,1716589841637,-500.0,0.00031506,5]
[327899126,1716589841646,-500.0,0.00031506,5]
[327899128,1716589841657,-1060.94,0.00031506,5]
[327899130,1716589841666,-500.0,0.00031506,5]
[327899133,1716589841676,-500.0,0.00031506,5]
[327899134,1716589841685,-832.4,0.00031506,5]
[327899136,1716589841695,-302.09,0.00031506,5]
[327899139,1716589841705,-235.4,0.00031715,2]
[327899141,1716589841714,-500.0,0.0003178,5]
[327899142,1716589841723,-374.61543703,0.0003178,5]
[327899144,1716589841732,-500.0,0.0003178,5]
[327899146,1716589841741,-500.0,0.0003178,5]
[327899148,1716589841750,-617.75,0.0003178,5]
[327899150,1716589841760,-500.0,0.0003178,5]
[327899152,1716589841769,-500.0,0.0003178,5]
[327899154,1716589841778,-623.1,0.0003178,5]
[327899156,1716589841787,-875.35,0.0003178,5]
[327899158,1716589841796,-500.0,0.0003178,5]
[327899160,1716589841805,-500.0,0.0003178,5]
[327899162,1716589841815,-284.56,0.0003178,5]
[327899164,1716589841824,-500.0,0.0003178,5]
[327899166,1716589841833,-500.0,0.0003178,5]
[327899168,1716589841842,-500.0,0.0003178,5]
[327899170,1716589841852,-631.06,0.0003178,5]
[327899172,1716589841861,-500.0,0.0003178,5]
[327899174,1716589841872,-500.0,0.0003178,5]
[327899176,1716589841881,-500.0,0.0003178,5]
[327899178,1716589841890,-1060.94,0.0003178,5]
[327899180,1716589841899,-500.0,0.0003178,5]
[327899182,1716589841909,-500.0,0.0003178,5]
[327899184,1716589841918,-832.4,0.0003178,5]
[327899186,1716589841928,-423.71279463,0.00031858,4]
[327899188,1716589841937,-9287.44,0.00032032,2]
[327899190,1716589841947,-5000.0,0.00032046,2]
[327899192,1716589841956,-4657.04,0.00032047,2]
[327899194,1716589841966,-500.0,0.00032054,5]
[327899197,1716589841975,-500.0,0.00032054,5]
[327899199,1716589841985,-500.0,0.00032054,5]
[327899201,1716589841994,-617.75,0.00032054,5]
[327899202,1716589842008,-500.0,0.00032054,5]
[327899205,1716589842018,-500.0,0.00032054,5]
[327899207,1716589842028,-875.35,0.00032054,5]
[327899209,1716589842037,-500.0,0.00032054,5]
[327899211,1716589842047,-500.0,0.00032054,5]
[327899212,1716589842056,-500.0,0.00032054,5]
[327899214,1716589842065,-500.0,0.00032054,5]
[327899217,1716589842078,-500.0,0.00032054,5]
[327899218,1716589842088,-631.06,0.00032054,5]
[327899220,1716589842097,-500.0,0.00032054,5]
[327899223,1716589842106,-500.0,0.00032054,5]
[327899225,1716589842115,-500.0,0.00032054,5]
[327899227,1716589842125,-1060.94,0.00032054,5]
[327899229,1716589842134,-500.0,0.00032054,5]
[327899231,1716589842143,-500.0,0.00032054,5]
[327899233,1716589842152,-832.4,0.00032054,5]
[327899235,1716589842162,-2500.0,0.0003206,2]
[327899237,1716589842172,-4604.11,0.00032171,2]
[327899239,1716589842183,-2500.0,0.00032177,2]
[327899241,1716589842192,-2500.0,0.00032181,2]
[327899243,1716589842201,-2500.0,0.00032251,2]
[327899245,1716589842210,-5000.0,0.00032283,2]
[327899247,1716589842220,-500.0,0.00032328,5]
[327899249,1716589842229,-500.0,0.00032328,5]
[327899251,1716589842238,-500.0,0.00032328,5]
[327899253,1716589842248,-617.75,0.00032328,5]
[327899255,1716589842257,-500.0,0.00032328,5]
[327899257,1716589842267,-500.0,0.00032328,5]
[327899259,1716589842276,-875.35,0.00032328,5]
[327899261,1716589842285,-500.0,0.00032328,5]
[327899262,1716589842294,-500.0,0.00032328,5]
[327899264,1716589842304,-500.0,0.00032328,5]
[327899266,1716589842313,-500.0,0.00032328,5]
[327899268,1716589842323,-500.0,0.00032328,5]
[327899271,1716589842332,-631.06,0.00032328,5]
[327899273,1716589842342,-500.0,0.00032328,5]
[327899275,1716589842352,-391.87630654,0.00032328,5]
[327899277,1716589842362,-500.0,0.00032328,5]
[327899279,1716589842372,-1060.94,0.00032328,5]
[327899281,1716589842381,-500.0,0.00032328,5]
[327899283,1716589842390,-500.0,0.00032328,5]
[327899285,1716589842400,-832.4,0.00032328,5]
[327899287,1716589842409,-4130.48,0.00032329,2]
[327899289,1716589842419,-2500.64,0.00032509,2]
[327899291,1716589842428,-2500.0,0.00032512,2]
[327899293,1716589842437,-2500.0,0.00032533,2]
[327899295,1716589842446,-5000.0,0.00032543,2]
[327899297,1716589842456,-2502.44,0.00032585,2]
[327899299,1716589842465,-5000.0,0.00032601,2]
[327899301,1716589842474,-500.0,0.00032602,5]
[327899303,1716589842483,-500.0,0.00032602,5]
[327899305,1716589842492,-500.0,0.00032602,5]
[327899307,1716589842501,-617.75,0.00032602,5]
[327899309,1716589842511,-500.0,0.00032602,5]
[327899311,1716589842520,-500.0,0.00032602,5]
[327899313,1716589842529,-875.35,0.00032602,5]
[327899314,1716589842538,-500.0,0.00032602,5]
[327899316,1716589842548,-500.0,0.00032602,5]
[327899318,1716589842557,-500.0,0.00032602,5]
[327899320,1716589842567,-500.0,0.00032602,5]
[327899323,1716589842577,-500.0,0.00032602,5]
[327899324,1716589842587,-631.06,0.00032602,5]
[327899327,1716589842596,-500.0,0.00032602,5]
[327899328,1716589842605,-333.96,0.00032602,5]
[327899330,1716589842615,-1060.94,0.00032602,5]
[327899332,1716589842624,-500.0,0.00032602,5]
[327899334,1716589842634,-500.0,0.00032602,5]
[327899336,1716589842643,-832.4,0.00032602,5]
[327899338,1716589842653,-2500.0,0.00032615,2]
[327899340,1716589842662,-1204.83,0.0003263,2]
[327899343,1716589842672,-10000.0,0.00032649,2]
[327899345,1716589842682,-2500.64,0.00032678,2]
[327899346,1716589842691,-5000.0,0.0003268,2]
[327899348,1716589842700,-5000.0,0.00032682,2]
[327899351,1716589842709,-2502.44,0.00032694,2]
[327899352,1716589842719,-1084.70761901,0.00032796,5]
[327899354,1716589842728,-357.45294595,0.00032796,4]
[327899356,1716589842738,-2500.0,0.00032846,2]
[327899358,1716589842747,-500.0,0.00032876,5]
[327899360,1716589842757,-500.0,0.00032876,5]
[327899362,1716589842766,-500.0,0.00032876,5]
[327899365,1716589842776,-617.75,0.00032876,5]
[327899366,1716589842785,-500.0,0.00032876,5]
[327899368,1716589842795,-500.0,0.00032876,5]
[327899370,1716589842805,-875.35,0.00032876,5]
[327899372,1716589842815,-500.0,0.00032876,5]
[327899375,1716589842824,-500.0,0.00032876,5]
[327899377,1716589842834,-500.0,0.00032876,5]
[327899379,1716589842843,-503.01344192,0.00032876,5]
[327899380,1716589842853,-219.88278227,0.00032876,5]
[327899382,1716589842862,-631.06,0.00032876,5]
[327899385,1716589842872,-500.0,0.00032876,5]
[327899386,1716589842882,-1060.94,0.00032876,5]
[327899388,1716589842891,-500.0,0.00032876,5]
[327899390,1716589842902,-500.0,0.00032876,5]
[327899392,1716589842911,-832.4,0.00032876,5]
[327899394,1716589842920,-5000.0,0.00032919,2]
[327899397,1716589842930,-3357.38,0.00032923,2]
[327899399,1716589842941,-5000.0,0.00032933,2]
[327899401,1716589842950,-2500.0,0.0003296,2]
[327899403,1716589842959,-2500.0,0.00032973,2]
[327899405,1716589842971,-155.0,0.00033,4]
[327899407,1716589842980,-434.22398938,0.0003313,3]
[327899410,1716589842989,-500.0,0.0003315,5]
[327899413,1716589843003,-500.0,0.0003315,5]
[327899416,1716589843012,-500.0,0.0003315,5]
[327899419,1716589843021,-617.75,0.0003315,5]
[327899422,1716589843031,-500.0,0.0003315,5]
[327899424,1716589843041,-614.39287872,0.0003315,5]
[327899426,1716589843051,-875.35,0.0003315,5]
[327899428,1716589843060,-500.0,0.0003315,5]
[327899430,1716589843069,-500.0,0.0003315,5]
[327899434,1716589843081,-500.0,0.0003315,5]
[327899436,1716589843092,-631.06,0.0003315,5]
[327899438,1716589843101,-500.0,0.0003315,5]
[327899440,1716589843111,-1060.94,0.0003315,5]
[327899443,1716589843120,-500.0,0.0003315,5]
[327899445,1716589843129,-500.0,0.0003315,5]
[327899447,1716589843139,-832.4,0.0003315,5]
[327899448,1716589843148,-185.57,0.00033151,120]
[327899450,1716589843157,-200.0,0.00033196,60]
[327899453,1716589843167,-500.0,0.00033196,10]
[327899454,1716589843176,-200.0,0.00033197,60]
[327899456,1716589843186,-200.0,0.00033197,60]
[327899458,1716589843196,-500.0,0.00033197,10]
[327899460,1716589843205,-500.0,0.00033197,10]
[327899462,1716589843215,-200.0,0.00033197,10]
[327899464,1716589843224,-524.45,0.00033289,2]
[327899466,1716589843233,-486.0,0.000334,18]
[327899468,1716589843242,-456.0,0.000334,18]
[327899470,1716589843252,-344.0,0.000334,6]
[327899472,1716589843261,-150.0,0.000334,6]
[327899474,1716589843270,-150.0,0.000334,7]
[327899476,1716589843280,-500.0,0.00033424,5]
[327899478,1716589843289,-500.0,0.00033424,5]
[327899480,1716589843298,-500.0,0.00033424,5]
[327899482,1716589843308,-617.75,0.00033424,5]
[327899484,1716589843317,-500.0,0.00033424,5]
[327899486,1716589843327,-875.35,0.00033424,5]
[327899488,1716589843336,-500.0,0.00033424,5]
[327899490,1716589843345,-500.0,0.00033424,5]
[327899492,1716589843354,-500.0,0.00033424,5]
[327899494,1716589843363,-631.06,0.00033424,5]
[327899496,1716589843372,-500.0,0.00033424,5]
[327899498,1716589843381,-1060.94,0.00033424,5]
[327899500,1716589843391,-331.92,0.00033424,5]
[327899502,1716589843401,-500.0,0.00033424,5]
[327899504,1716589843410,-832.4,0.00033424,5]
[327899518,1716589843550,-1603.10006197,0.00033464,2]
[327899520,1716589843560,-2147.03523635,0.00033466,4]
[327899522,1716589843570,-97940.79534733,0.00033466,30]
[327899524,1716589843580,-1062.0,0.00033472,4]
[327899526,1716589843590,-3339.06894414,0.00033472,30]
[327899528,1716589843599,-920.46733771,0.00033472,2]
[327899530,1716589843609,-22190.0,0.00033472,60]
[327899531,1716589843618,-10000.0,0.00033472,30]
[327899533,1716589843628,-10000.0,0.00033472,25]
[327899535,1716589843638,-10000.0,0.00033472,60]
[327899537,1716589843648,-3411.949489,0.00033474,2]
[327899539,1716589843658,-32476.680496,0.00033474,2]
[327899541,1716589843667,-1908.4290546,0.00033592,2]
[327899543,1716589843677,-500.0,0.00033698,5]
[327899545,1716589843686,-500.0,0.00033698,5]
[327899547,1716589843696,-500.0,0.00033698,5]
[327899549,1716589843705,-617.75,0.00033698,5]
[327899551,1716589843715,-500.0,0.00033698,5]
[327899553,1716589843724,-875.35,0.00033698,5]
[327899555,1716589843734,-500.0,0.00033698,5]
[327899557,1716589843743,-500.0,0.00033698,5]
[327899559,1716589843752,-500.0,0.00033698,5]
[327899561,1716589843761,-631.06,0.00033698,5]
[327899563,1716589843771,-500.0,0.00033698,5]
[327899566,1716589843780,-1060.94,0.00033698,5]
[327899568,1716589843790,-500.0,0.00033698,5]
[327899570,1716589843799,-832.4,0.00033698,5]
[327899572,1716589843808,-157.052505,0.00033748,40]
[327899574,1716589843818,-164.56423458,0.00033861,2]
[327899576,1716589843828,-293.758931,0.00033894,7]
[327899578,1716589843837,-4029.50571756,0.000339,30]
[327899585,1716589843901,-1058.70532703,0.000339,30]
[327899587,1716589843912,-282.80328744,0.00033959,4]
[327899589,1716589843921,-225.3721941,0.00033959,4]
[327899598,1716589844002,-162.76290291,0.00011136,2]
[327899600,1716589844014,-10.38372652,0.00033959,4]
[327899602,1716589844024,-195.50201309,0.00033959,4]
[327899604,1716589844034,-318.04989705,0.00033959,4]
[327899605,1716589844046,-284.41149772,0.00033959,4]
[327899606,1716589844055,-291.53456264,0.00033959,4]
[327899607,1716589844065,-155.0,0.00033959,4]
[327899608,1716589844077,-894.45132496,0.00033959,4]
[327899609,1716589844086,-208.25486787,0.00033959,4]
[327899610,1716589844096,-155.0,0.00033959,4]
[327899611,1716589844105,-550.40156148,0.00033959,4]
[327899612,1716589844116,-174.89005821,0.00033959,4]
[327899613,1716589844125,-155.87982302,0.00033959,4]
[327899614,1716589844135,-404.77250217,0.00033959,4]
[327899615,1716589844144,-156.69539022,0.00033959,4]
[327899616,1716589844154,-161.98458031,0.00033959,4]
[327899617,1716589844163,-480.28343884,0.00033959,4]
[327899618,1716589844172,-167.63437116,0.00033959,4]
[327899619,1716589844181,-89.31696235,0.00033959,4]
[327899620,1716589844192,-577.4585146,0.00033959,4]
[327899622,1716589844202,-155.25533383,0.00033959,4]
[327899625,1716589844212,-155.59740862,0.00033959,30]
[327899626,1716589844221,-1111.83377594,0.0003396,4]
[327899629,1716589844233,-2004.52439526,0.0003396,4]
[327899631,1716589844242,-328.81213102,0.0003396,4]
[327899632,1716589844252,-500.0,0.00033972,5]
[327899634,1716589844261,-500.0,0.00033972,5]
[327899636,1716589844271,-500.0,0.00033972,5]
[327899638,1716589844280,-617.75,0.00033972,5]
[327899640,1716589844290,-500.0,0.00033972,5]
[327899642,1716589844299,-875.35,0.00033972,5]
[327899644,1716589844308,-610.31,0.00033972,5]
[327899646,1716589844318,-500.0,0.00033972,5]
[327899648,1716589844327,-631.06,0.00033972,5]
[327899650,1716589844336,-500.0,0.00033972,5]
[327899652,1716589844346,-1060.94,0.00033972,5]
[327899654,1716589844355,-500.0,0.00033972,5]
[327899656,1716589844365,-832.4,0.00033972,5]
[327899658,1716589844375,-235.4,0.00033978,2]
[327899660,1716589844384,-1000.0,0.00034,7]
[327899662,1716589844393,-17016.26035251,0.00034,10]
[327899664,1716589844402,-1918.935036,0.00034,2]
[327899666,1716589844411,-152.0,0.00034095,3]
[327899668,1716589844422,-173.052505,0.00034148,40]
[327899670,1716589844431,-500.0,0.00034246,5]
[327899672,1716589844441,-500.0,0.00034246,5]
[327899674,1716589844450,-500.0,0.00034246,5]
[327899676,1716589844460,-617.75,0.00034246,5]
[327899678,1716589844470,-500.0,0.00034246,5]
[327899680,1716589844479,-875.35,0.00034246,5]
[327899682,1716589844489,-500.0,0.00034246,5]
[327899684,1716589844499,-631.06,0.00034246,5]
[327899685,1716589844508,-500.0,0.00034246,5]
[327899686,1716589844518,-1060.94,0.00034246,5]
[327899687,1716589844527,-500.0,0.00034246,5]
[327899688,1716589844537,-832.4,0.00034246,5]
[327899689,1716589844546,-157.052506,0.00034348,44]
[327899691,1716589844556,-293.758931,0.000344,7]
[327899693,1716589844565,-517.0,0.00034435,2]
[327899695,1716589844575,-655.0,0.00034435,2]
[327899697,1716589844585,-157.052505,0.00034448,40]
[327899699,1716589844595,-150.0,0.00034489,2]
[327899701,1716589844605,-500.0,0.0003452,5]
[327899703,1716589844615,-500.0,0.0003452,5]
[327899705,1716589844625,-500.0,0.0003452,5]
[327899706,1716589844635,-617.75,0.0003452,5]
[327899708,1716589844645,-500.0,0.0003452,5]
[327899710,1716589844656,-875.35,0.0003452,5]
[327899712,1716589844666,-500.0,0.0003452,5]
[327899714,1716589844676,-631.06,0.0003452,5]
[327899716,1716589844685,-500.0,0.0003452,5]
[327899718,1716589844695,-1060.94,0.0003452,5]
[327899720,1716589844705,-536.94156612,0.0003452,5]
[327899722,1716589844715,-832.4,0.0003452,5]
[327899724,1716589844724,-870.34,0.00034548,2]
[327899727,1716589844736,-415.86,0.00034548,2]
[327899728,1716589844746,-415.86,0.00034548,2]
[327899730,1716589844756,-870.34,0.00034548,2]
[327899732,1716589844766,-870.34,0.00034548,2]
[327899734,1716589844776,-415.86,0.00034548,2]
[327899736,1716589844785,-868.22,0.00034548,2]
[327899738,1716589844799,-415.86,0.00034548,2]
[327899740,1716589844808,-415.86,0.00034548,2]
[327899743,1716589844818,-490.61,0.00034548,2]
[327899744,1716589844828,-150.0,0.00034548,10]
[327899746,1716589844837,-157.052506,0.00034548,46]
[327899748,1716589844847,-361.0,0.00034559,120]
[327899750,1716589844857,-669.0,0.000346,23]
[327899752,1716589844867,-157.052506,0.00034648,44]
[327899754,1716589844877,-323.53768341,0.00034711,2]
[327899756,1716589844887,-173.052505,0.00034748,44]
[327899758,1716589844897,-2511.15920438,0.00034748,7]
[327899760,1716589844907,-517.0,0.0003479,2]
[327899762,1716589844917,-655.0,0.0003479,2]
[327899764,1716589844926,-500.0,0.00034794,5]
[327899766,1716589844936,-500.0,0.00034794,5]
[327899768,1716589844945,-553.02549859,0.00034794,5]
[327899770,1716589844955,-617.75,0.00034794,5]
[327899772,1716589844965,-500.0,0.00034794,5]
[327899774,1716589844975,-875.35,0.00034794,5]
[327899776,1716589844984,-500.0,0.00034794,5]
[327899778,1716589844995,-631.06,0.00034794,5]
[327899779,1716589845008,-500.0,0.00034794,5]
[327899781,1716589845017,-1060.94,0.00034794,5]
[327899783,1716589845028,-832.4,0.00034794,5]
[327899785,1716589845039,-202.17036146,0.000348,30]
[327899787,1716589845048,-3398.1692931,0.00034824,2]
[327899789,1716589845058,-32476.680496,0.00034824,2]
[327899791,1716589845068,-1908.4290546,0.00034824,2]
[327899793,1716589845081,-129374.16698324,0.00034848,2]
[327899796,1716589845092,-157.052505,0.00034848,44]
[327899797,1716589845102,-5031.76737515,0.00034848,2]
[327899799,1716589845111,-150.0,0.00034861,2]
[327899800,1716589845120,-189.63171885,0.00034876,7]
[327899801,1716589845130,-494.38782564,0.000349,3]
[327899802,1716589845139,-171.47681867,0.000349,7]
[327899803,1716589845149,-166.86055703,0.000349,2]
[327899804,1716589845160,-293.758931,0.00034905,7]
[327899805,1716589845170,-173.052505,0.00034948,44]
[327899806,1716589845179,-2000.0,0.00034986,30]
[327899807,1716589845189,-254.03,0.00034989,15]
[327899808,1716589845198,-50000.0,0.00035,15]
[327899809,1716589845208,-1000.0,0.00035,8]
[327899810,1716589845217,-10130.00297997,0.00035,4]
[327899812,1716589845226,-26712.51734184,0.00035,6]
[327899814,1716589845235,-1288.49531459,0.00035,4]
[327899816,1716589845245,-3267.01104015,0.00035,2]
[327899818,1716589845255,-560.31,0.00035,10]
[327899820,1716589845264,-154.85,0.00035,2]
[327899822,1716589845274,-165.32,0.00035,2]
[327899824,1716589845283,-6035.50436987,0.00035,5]
[327899826,1716589845293,-361.0,0.00035014,120]
[327899827,1716589845302,-157.052505,0.00035048,46]
[327899829,1716589845311,-150.0,0.00035052,2]
[327899831,1716589845321,-166.860557,0.00035067,2]
[327899833,1716589845331,-500.0,0.00035068,5]
[327899836,1716589845342,-633.55,0.00035068,5]
[327899838,1716589845354,-617.75,0.00035068,5]
[327899840,1716589845366,-500.0,0.00035068,5]
[327899842,1716589845378,-875.35,0.00035068,5]
[327899845,1716589845391,-594.97170008,0.00035068,5]
[327899847,1716589845405,-631.06,0.00035068,5]
[327899849,1716589845418,-500.0,0.00035068,5]
[327899851,1716589845429,-1060.94,0.00035068,5]
[327899853,1716589845441,-832.4,0.00035068,5]
[327899855,1716589845451,-669.0,0.000351,24]
[327899857,1716589845461,-150.0,0.00035102,2]
[327899860,1716589845472,-517.0,0.00035145,2]
[327899862,1716589845484,-655.0,0.00035145,2]
[327899864,1716589845496,-177.052505,0.00035148,44]
[327899866,1716589845507,-150.0,0.00035183,2]
[327899867,1716589845519,-2810.02985637,0.00035193,2]
[327899876,1716589846213,-270.74804263,0.00017259,2]
[327899877,1716589846224,-186.80445877,0.000348,5]
[327899878,1716589846237,-80.19554123,0.000348,5]
[327899879,1716589846249,-2511.15920431,0.00034807,7]
[327899880,1716589846261,-574.35924083,0.00035193,2]
[327899881,1716589846272,-1998.81699811,0.00035193,2]
[327899882,1716589846332,-30477.86349789,0.00035193,2]
[327899883,1716589846342,-150.0,0.00035198,2]
[327899884,1716589846354,-198.20802714,0.00035203,2]
[327899885,1716589846365,-11186.0,0.00035218,8]
[327899886,1716589846376,-258.2848559,0.00035228,2]
[327899887,1716589846388,-166.860557,0.00035233,2]
[327899888,1716589846401,-150.0,0.00035247,2]
[327899889,1716589846411,-157.052505,0.00035248,46]
[327899890,1716589846422,-150.0,0.00035266,2]
[327899891,1716589846432,-150.0,0.00035298,2]
[327899892,1716589846444,-195.53717201,0.000353,2]
[327899893,1716589846457,-895.27850814,0.000353,2]
[327899894,1716589846470,-256.47900411,0.000353,2]
[327899895,1716589846482,-7224.14,0.00035342,5]
[327899896,1716589846494,-500.0,0.00035342,5]
[327899897,1716589846507,-617.75,0.00035342,5]
[327899898,1716589846517,-500.0,0.00035342,5]
[327899899,1716589846527,-875.35,0.00035342,5]
[327899900,1716589846538,-631.06,0.00035342,5]
[327899901,1716589846548,-500.0,0.00035342,5]
[327899902,1716589846558,-1060.94,0.00035342,5]
[327899903,1716589846570,-832.4,0.00035342,5]
[327899904,1716589846582,-157.052505,0.00035348,46]
[327899905,1716589846593,-1908.4290546,0.0003535,2]
[327899906,1716589846604,-5122.03693974,0.0003535,2]
[327899907,1716589846616,-895.27850813,0.0003535,2]
[327899908,1716589846627,-3370.6089012,0.00035374,2]
[327899909,1716589846637,-3356.8287053,0.00035374,2]
[327899910,1716589846648,-3343.0485094,0.00035374,2]
[327899911,1716589846661,-32476.680496,0.00035374,2]
[327899912,1716589846671,-32476.680496,0.00035374,2]
[327899913,1716589846683,-26197.51944953,0.00035374,2]
[327899914,1716589846707,-1703.1,0.00032318,10]
[327899915,1716589846718,-182.02773,0.00035374,2]
[327899916,1716589846732,-6097.13331647,0.00035374,2]
[327899917,1716589846744,-1908.4290546,0.00035374,2]
[327899918,1716589846755,-1908.4290546,0.00035374,2]
[327899919,1716589846766,-1908.4290546,0.00035374,2]
[327899920,1716589846776,-150.0,0.00035377,2]
[327899921,1716589846786,-150.0,0.0003538,2]
[327899922,1716589846796,-1039.00179667,0.00035397,4]
[327899923,1716589846806,-207.96435861,0.00035397,8]
[327899924,1716589846816,-321.83343734,0.00035397,4]
[327899925,1716589846827,-6468.41491597,0.00035397,4]
[327899926,1716589846837,-500.0,0.00035397,2]
[327899927,1716589846848,-195.87413801,0.00035398,2]
[327899928,1716589846859,-12809.87042684,0.00035398,30]
[327899929,1716589846871,-2830.38549921,0.00035398,2]
[327899930,1716589846882,-32370.23494713,0.00035398,2]
[327899931,1716589846896,-3474.1344,0.00035398,2]
[327899932,1716589846916,-585.22668101,0.00035398,2]